[Event "Titled Tuesday Blitz June 07 Early 2022"]
[White "Korchmar, Vasiliy"]
[Black "Stribuk, Artiom"]
[WhiteFideId "24131750"]
[BlackFideId "13515659"]
[WhiteElo "2370"]
[BlackElo "2259"]
[Result "1/2-1/2"]
[Round "07"]
[TimeControl "180+1"]
[Date "2022.06.07"]
[WhiteClock "0:00:04"]
[BlackClock "0:00:04"]

1. e4 {[%clk 0:03:00]}  c5 {[%clk 0:02:59]} 2. Nf3 {[%clk 0:03:00]}  Nc6 {[%clk 0:02:59]} 3. d4 {[%clk 0:02:59]}  cxd4 {[%clk 0:02:58]} 4. Nxd4 {[%clk 0:03:00]}  Nf6 {[%clk 0:02:57]} 5. Nc3 {[%clk 0:03:00]}  e5 {[%clk 0:02:56]} 6. Ndb5 {[%clk 0:03:00]}  d6 {[%clk 0:02:55]} 7. Nd5 {[%clk 0:03:00]}  Nxd5 {[%clk 0:02:55]} 8. exd5 {[%clk 0:02:58]}  Ne7 {[%clk 0:02:55]} 9. c4 {[%clk 0:02:56]}  Ng6 {[%clk 0:02:55]} 10. Qa4 {[%clk 0:02:53]}  Bd7 {[%clk 0:02:55]} 11. Qb4 {[%clk 0:02:53]}  Qb8 {[%clk 0:02:55]} 12. h4 {[%clk 0:02:53]}  h5 {[%clk 0:02:56]} 13. Bd3 {[%clk 0:02:46]}  a6 {[%clk 0:02:36]} 14. Nc3 {[%clk 0:02:46]}  f5 {[%clk 0:02:36]} 15. Bg5 {[%clk 0:02:43]}  Be7 {[%clk 0:02:16]} 16. a4 {[%clk 0:02:38]}  a5 {[%clk 0:01:48]} 17. Qb6 {[%clk 0:02:32]}  Qa7 {[%clk 0:01:41]} 18. Qxa7 {[%clk 0:02:23]}  Rxa7 {[%clk 0:01:41]} 19. Nb5 {[%clk 0:02:20]}  Bxb5 {[%clk 0:01:28]} 20. Bxf5 {[%clk 0:02:18]}  Nxh4 {[%clk 0:01:11]} 21. Bxh4 {[%clk 0:01:56]}  Bd7 {[%clk 0:01:04]} 22. Bg6+ {[%clk 0:01:49]}  Kd8 {[%clk 0:00:59]} 23. Bxe7+ {[%clk 0:01:24]}  Kxe7 {[%clk 0:00:59]} 24. Rxh5 {[%clk 0:01:24]}  Rxh5 {[%clk 0:00:58]} 25. Bxh5 {[%clk 0:01:25]}  Ra8 {[%clk 0:00:57]} 26. Kd2 {[%clk 0:01:11]}  Rh8 {[%clk 0:00:56]} 27. Bf3 {[%clk 0:01:10]}  g5 {[%clk 0:00:39]} 28. Ra3 {[%clk 0:00:56]}  b6 {[%clk 0:00:31]} 29. Rb3 {[%clk 0:00:54]}  Rb8 {[%clk 0:00:31]} 30. Ra3 {[%clk 0:00:52]}  Rc8 {[%clk 0:00:30]} 31. Kd3 {[%clk 0:00:44]}  Rf8 {[%clk 0:00:27]} 32. Ke3 {[%clk 0:00:41]}  Kd8 {[%clk 0:00:24]} 33. Ra1 {[%clk 0:00:36]}  Rh8 {[%clk 0:00:21]} 34. g3 {[%clk 0:00:33]}  Ke7 {[%clk 0:00:15]} 35. b3 {[%clk 0:00:33]}  g4 {[%clk 0:00:12]} 36. Rh1 {[%clk 0:00:32]}  Rxh1 {[%clk 0:00:08]} 37. Bxh1 {[%clk 0:00:33]}  Kf6 {[%clk 0:00:08]} 38. Be4 {[%clk 0:00:33]}  Kg5 {[%clk 0:00:08]} 39. Kd2 {[%clk 0:00:31]}  Kf6 {[%clk 0:00:08]} 40. Kc3 {[%clk 0:00:31]}  Ke7 {[%clk 0:00:08]} 41. Bc2 {[%clk 0:00:31]}  Bc8 {[%clk 0:00:03]} 42. Bd1 {[%clk 0:00:31]}  Kd8 {[%clk 0:00:03]} 43. b4 {[%clk 0:00:32]}  Bd7 {[%clk 0:00:03]} 44. bxa5 {[%clk 0:00:14]}  bxa5 {[%clk 0:00:03]} 45. c5 {[%clk 0:00:15]}  Kc7 {[%clk 0:00:04]} 46. Kc4 {[%clk 0:00:06]}  Bf5 {[%clk 0:00:03]} 47. c6 {[%clk 0:00:02]}  Kb6 {[%clk 0:00:03]} 48. Be2 {[%clk 0:00:01]}  Bc8 {[%clk 0:00:02]} 49. Kc3 {[%clk 0:00:02]}  Bf5 {[%clk 0:00:02]} 50. Kc4 {[%clk 0:00:02]}  Bc8 {[%clk 0:00:02]} 51. Bd3 {[%clk 0:00:02]}  Ba6+ {[%clk 0:00:02]} 52. Kc3 {[%clk 0:00:03]}  Bc8 {[%clk 0:00:03]} 53. Be4 {[%clk 0:00:03]}  Kc5 {[%clk 0:00:04]} 54. Kb3 {[%clk 0:00:03]}  Ba6 {[%clk 0:00:04]} 55. Kc3 {[%clk 0:00:03]}  Bc8 {[%clk 0:00:04]} 56. Bg2 {[%clk 0:00:03]}  Ba6 {[%clk 0:00:04]} 57. Be4 {[%clk 0:00:04]}  Bc8 {[%clk 0:00:04]} 1/2-1/2


[Site "https://www.chess.com"]

[Event "Titled Tuesday Blitz June 07 Early 2022"]
[White "Kozak, Adam"]
[Black "Alvarado Diaz, Alejandro"]
[WhiteFideId "753246"]
[BlackFideId "2276119"]
[WhiteElo "2459"]
[BlackElo "2438"]
[Result "1-0"]
[Round "07"]
[TimeControl "180+1"]
[Date "2022.06.07"]
[WhiteClock "0:02:28"]
[BlackClock "0:00:57"]

1. c4 {[%clk 0:02:58]}  c5 {[%clk 0:02:52]} 2. Nf3 {[%clk 0:02:58]}  d6 {[%clk 0:02:52]} 3. g3 {[%clk 0:02:58]}  Nc6 {[%clk 0:02:51]} 4. Bg2 {[%clk 0:02:58]}  e5 {[%clk 0:02:51]} 5. Nc3 {[%clk 0:02:58]}  g6 {[%clk 0:02:50]} 6. a3 {[%clk 0:02:57]}  Bg7 {[%clk 0:02:49]} 7. O-O {[%clk 0:02:57]}  Nge7 {[%clk 0:02:49]} 8. Rb1 {[%clk 0:02:57]}  a5 {[%clk 0:02:49]} 9. d3 {[%clk 0:02:57]}  O-O {[%clk 0:02:49]} 10. Bd2 {[%clk 0:02:57]}  h6 {[%clk 0:02:43]} 11. Ne1 {[%clk 0:02:50]}  Be6 {[%clk 0:02:39]} 12. Nd5 {[%clk 0:02:50]}  f5 {[%clk 0:02:32]} 13. b4 {[%clk 0:02:48]}  axb4 {[%clk 0:02:28]} 14. axb4 {[%clk 0:02:48]}  Bxd5 {[%clk 0:02:05]} 15. cxd5 {[%clk 0:02:48]}  Nxb4 {[%clk 0:02:04]} 16. Bxb4 {[%clk 0:02:48]}  cxb4 {[%clk 0:02:05]} 17. Rxb4 {[%clk 0:02:47]}  Qc7 {[%clk 0:01:59]} 18. Qb3 {[%clk 0:02:44]}  Rab8 {[%clk 0:01:56]} 19. Nc2 {[%clk 0:02:44]}  Rfc8 {[%clk 0:01:54]} 20. Na3 {[%clk 0:02:44]}  Qc5 {[%clk 0:01:47]} 21. Rb5 {[%clk 0:02:39]}  Qc3 {[%clk 0:01:41]} 22. Nc4 {[%clk 0:02:39]}  Qxb3 {[%clk 0:01:33]} 23. Rxb3 {[%clk 0:02:40]}  Rc5 {[%clk 0:01:32]} 24. Nxd6 {[%clk 0:02:35]}  Nxd5 {[%clk 0:01:28]} 25. Nxb7 {[%clk 0:02:35]}  Rc7 {[%clk 0:01:08]} 26. Bxd5+ {[%clk 0:02:33]}  Kh7 {[%clk 0:01:08]} 27. Rfb1 {[%clk 0:02:33]}  e4 {[%clk 0:01:07]} 28. dxe4 {[%clk 0:02:33]}  fxe4 {[%clk 0:01:08]} 29. Bxe4 {[%clk 0:02:34]}  Re7 {[%clk 0:01:07]} 30. Bf3 {[%clk 0:02:34]}  Bd4 {[%clk 0:01:06]} 31. Nd6 {[%clk 0:02:34]}  Rd8 {[%clk 0:01:02]} 32. Ne4 {[%clk 0:02:30]}  Rdd7 {[%clk 0:00:59]} 33. Rd3 {[%clk 0:02:29]}  g5 {[%clk 0:00:57]} 34. Rbd1 {[%clk 0:02:28]} 1-0


[Site "https://www.chess.com"]

[Event "Titled Tuesday Blitz June 07 Early 2022"]
[White "Lazavik, Denis"]
[Black "Santos Ruiz, Miguel"]
[WhiteFideId "13515110"]
[BlackFideId "22291482"]
[WhiteElo "2437"]
[BlackElo "2475"]
[Result "1-0"]
[Round "07"]
[TimeControl "180+1"]
[Date "2022.06.07"]
[WhiteClock "0:00:36"]
[BlackClock "0:00:26"]

1. d4 {[%clk 0:03:00]}  d5 {[%clk 0:02:59]} 2. c4 {[%clk 0:03:00]}  c6 {[%clk 0:03:00]} 3. Nf3 {[%clk 0:02:59]}  Nf6 {[%clk 0:02:59]} 4. Nc3 {[%clk 0:03:00]}  e6 {[%clk 0:03:00]} 5. Bg5 {[%clk 0:02:59]}  Nbd7 {[%clk 0:03:00]} 6. cxd5 {[%clk 0:02:59]}  exd5 {[%clk 0:02:59]} 7. e3 {[%clk 0:02:59]}  h6 {[%clk 0:02:59]} 8. Bh4 {[%clk 0:02:59]}  g5 {[%clk 0:02:59]} 9. Bg3 {[%clk 0:02:59]}  Nh5 {[%clk 0:03:00]} 10. Bd3 {[%clk 0:02:58]}  Nxg3 {[%clk 0:03:00]} 11. hxg3 {[%clk 0:02:58]}  Nb6 {[%clk 0:02:55]} 12. Qc2 {[%clk 0:02:58]}  Be6 {[%clk 0:02:55]} 13. O-O-O {[%clk 0:02:47]}  Qe7 {[%clk 0:02:52]} 14. Kb1 {[%clk 0:02:45]}  O-O-O {[%clk 0:02:50]} 15. Rc1 {[%clk 0:02:46]}  Kb8 {[%clk 0:02:50]} 16. Na4 {[%clk 0:02:44]}  Nxa4 {[%clk 0:02:36]} 17. Qxa4 {[%clk 0:02:45]}  Qb4 {[%clk 0:02:02]} 18. Qd1 {[%clk 0:02:42]}  g4 {[%clk 0:01:53]} 19. Ne5 {[%clk 0:02:36]}  c5 {[%clk 0:01:08]} 20. dxc5 {[%clk 0:01:58]}  Bxc5 {[%clk 0:01:08]} 21. Bc2 {[%clk 0:01:39]}  d4 {[%clk 0:00:53]} 22. e4 {[%clk 0:00:53]}  d3 {[%clk 0:00:41]} 23. Nxd3 {[%clk 0:00:52]}  Qa5 {[%clk 0:00:40]} 24. Bb3 {[%clk 0:00:45]}  Bxf2 {[%clk 0:00:40]} 25. Bxe6 {[%clk 0:00:43]}  fxe6 {[%clk 0:00:41]} 26. Qb3 {[%clk 0:00:43]}  Bxg3 {[%clk 0:00:30]} 27. Nc5 {[%clk 0:00:39]}  Qb6 {[%clk 0:00:25]} 28. Qxg3+ {[%clk 0:00:39]}  Ka8 {[%clk 0:00:26]} 29. Qb3 {[%clk 0:00:36]} 1-0


[Site "https://www.chess.com"]

[Event "Titled Tuesday Blitz June 07 Early 2022"]
[White "Livaic, Leon"]
[Black "Barp, Alberto"]
[WhiteFideId "14531534"]
[BlackFideId "872555"]
[WhiteElo "2540"]
[BlackElo "2229"]
[Result "1-0"]
[Round "07"]
[TimeControl "180+1"]
[Date "2022.06.07"]
[WhiteClock "0:00:24"]
[BlackClock "0:00:17"]

1. d4 {[%clk 0:03:00]}  Nf6 {[%clk 0:02:58]} 2. c4 {[%clk 0:03:01]}  e6 {[%clk 0:02:54]} 3. Nf3 {[%clk 0:03:00]}  Bb4+ {[%clk 0:02:50]} 4. Nbd2 {[%clk 0:02:59]}  b6 {[%clk 0:02:40]} 5. a3 {[%clk 0:02:57]}  Bxd2+ {[%clk 0:02:39]} 6. Qxd2 {[%clk 0:02:58]}  Bb7 {[%clk 0:02:40]} 7. e3 {[%clk 0:02:58]}  O-O {[%clk 0:02:41]} 8. Be2 {[%clk 0:02:58]}  d6 {[%clk 0:02:39]} 9. b4 {[%clk 0:02:57]}  Nbd7 {[%clk 0:02:37]} 10. Bb2 {[%clk 0:02:56]}  a5 {[%clk 0:02:37]} 11. O-O {[%clk 0:02:55]}  Qe7 {[%clk 0:02:37]} 12. Qc2 {[%clk 0:02:53]}  Be4 {[%clk 0:02:35]} 13. Qc3 {[%clk 0:02:52]}  axb4 {[%clk 0:02:31]} 14. axb4 {[%clk 0:02:52]}  Rxa1 {[%clk 0:02:32]} 15. Rxa1 {[%clk 0:02:53]}  Ra8 {[%clk 0:02:32]} 16. Nd2 {[%clk 0:02:51]}  Rxa1+ {[%clk 0:02:26]} 17. Bxa1 {[%clk 0:02:51]}  Bb7 {[%clk 0:02:27]} 18. f3 {[%clk 0:02:49]}  h6 {[%clk 0:02:20]} 19. e4 {[%clk 0:02:48]}  e5 {[%clk 0:02:12]} 20. Nf1 {[%clk 0:02:38]}  Nh5 {[%clk 0:02:04]} 21. g3 {[%clk 0:02:32]}  Qg5 {[%clk 0:02:04]} 22. Qd2 {[%clk 0:02:24]}  Nf4 {[%clk 0:01:57]} 23. Bd1 {[%clk 0:01:26]}  Ne6 {[%clk 0:01:23]} 24. d5 {[%clk 0:01:18]}  Qxd2 {[%clk 0:01:19]} 25. Nxd2 {[%clk 0:01:19]}  Nd8 {[%clk 0:01:11]} 26. Ba4 {[%clk 0:01:16]}  Nb8 {[%clk 0:01:08]} 27. c5 {[%clk 0:01:13]}  bxc5 {[%clk 0:01:08]} 28. bxc5 {[%clk 0:01:14]}  Ba6 {[%clk 0:01:08]} 29. Kf2 {[%clk 0:01:06]}  Nb7 {[%clk 0:01:06]} 30. c6 {[%clk 0:00:58]}  Nc5 {[%clk 0:01:05]} 31. Bc2 {[%clk 0:00:58]}  Bd3 {[%clk 0:00:57]} 32. Bxd3 {[%clk 0:00:55]}  Nxd3+ {[%clk 0:00:58]} 33. Ke3 {[%clk 0:00:56]}  Nb4 {[%clk 0:00:57]} 34. Bc3 {[%clk 0:00:54]}  N4a6 {[%clk 0:00:52]} 35. Ba5 {[%clk 0:00:53]}  Kf8 {[%clk 0:00:51]} 36. Nc4 {[%clk 0:00:42]}  Ke7 {[%clk 0:00:48]} 37. Na3 {[%clk 0:00:43]}  Kd8 {[%clk 0:00:42]} 38. Nb5 {[%clk 0:00:43]}  Kc8 {[%clk 0:00:43]} 39. Bxc7 {[%clk 0:00:41]}  Nxc7 {[%clk 0:00:42]} 40. Nxd6+ {[%clk 0:00:41]}  Kd8 {[%clk 0:00:43]} 41. Nxf7+ {[%clk 0:00:42]}  Ke8 {[%clk 0:00:39]} 42. Nxe5 {[%clk 0:00:41]}  Nb5 {[%clk 0:00:39]} 43. Nc4 {[%clk 0:00:36]}  Ke7 {[%clk 0:00:39]} 44. e5 {[%clk 0:00:35]}  Na6 {[%clk 0:00:32]} 45. d6+ {[%clk 0:00:32]}  Ke6 {[%clk 0:00:32]} 46. f4 {[%clk 0:00:26]}  Kd5 {[%clk 0:00:17]} 47. d7 {[%clk 0:00:24]} 1-0


[Site "https://www.chess.com"]

[Event "Titled Tuesday Blitz June 07 Early 2022"]
[White "Maghsoodloo, Parham"]
[Black "Nakamura, Hikaru"]
[WhiteFideId "12539929"]
[BlackFideId "2016192"]
[WhiteElo "2607"]
[BlackElo "2850"]
[Result "1/2-1/2"]
[Round "07"]
[TimeControl "180+1"]
[Date "2022.06.07"]
[WhiteClock "0:00:18"]
[BlackClock "0:00:25"]

1. d4 {[%clk 0:03:00]}  Nf6 {[%clk 0:02:59]} 2. c4 {[%clk 0:03:00]}  e6 {[%clk 0:03:00]} 3. Nc3 {[%clk 0:02:59]}  Bb4 {[%clk 0:03:00]} 4. e3 {[%clk 0:02:59]}  O-O {[%clk 0:03:00]} 5. Bd2 {[%clk 0:03:00]}  c5 {[%clk 0:03:01]} 6. Nge2 {[%clk 0:02:56]}  d5 {[%clk 0:02:54]} 7. cxd5 {[%clk 0:02:44]}  cxd4 {[%clk 0:02:48]} 8. Nxd4 {[%clk 0:02:36]}  exd5 {[%clk 0:02:41]} 9. Bd3 {[%clk 0:02:26]}  Nc6 {[%clk 0:02:41]} 10. Nce2 {[%clk 0:02:27]}  Bd6 {[%clk 0:02:40]} 11. O-O {[%clk 0:02:17]}  Ne5 {[%clk 0:02:28]} 12. Bf5 {[%clk 0:02:04]}  Ne4 {[%clk 0:02:20]} 13. b3 {[%clk 0:01:54]}  g6 {[%clk 0:01:57]} 14. Bxc8 {[%clk 0:01:53]}  Rxc8 {[%clk 0:01:58]} 15. Be1 {[%clk 0:01:51]}  Ng4 {[%clk 0:01:56]} 16. Nf3 {[%clk 0:01:46]}  Qf6 {[%clk 0:01:47]} 17. h3 {[%clk 0:01:42]}  Ne5 {[%clk 0:01:46]} 18. Ned4 {[%clk 0:01:39]}  a6 {[%clk 0:01:41]} 19. Qe2 {[%clk 0:01:27]}  Nxf3+ {[%clk 0:01:29]} 20. Qxf3 {[%clk 0:01:27]}  Qe5 {[%clk 0:01:29]} 21. g3 {[%clk 0:01:27]}  h5 {[%clk 0:01:29]} 22. h4 {[%clk 0:01:26]}  Nf6 {[%clk 0:01:17]} 23. Rd1 {[%clk 0:01:25]}  Rfe8 {[%clk 0:01:15]} 24. Kg2 {[%clk 0:01:18]}  Ng4 {[%clk 0:01:12]} 25. Ne2 {[%clk 0:01:15]}  Nf6 {[%clk 0:01:01]} 26. Nf4 {[%clk 0:01:15]}  Bf8 {[%clk 0:00:44]} 27. Nxd5 {[%clk 0:01:14]}  Ng4 {[%clk 0:00:45]} 28. e4 {[%clk 0:01:13]}  Bg7 {[%clk 0:00:42]} 29. Rd2 {[%clk 0:00:55]}  Rc1 {[%clk 0:00:25]} 30. Re2 {[%clk 0:00:52]}  f5 {[%clk 0:00:25]} 31. Qf4 {[%clk 0:00:35]}  Rd1 {[%clk 0:00:25]} 32. Qxe5 {[%clk 0:00:28]}  Rxe5 {[%clk 0:00:26]} 33. f3 {[%clk 0:00:27]}  fxe4 {[%clk 0:00:25]} 34. fxg4 {[%clk 0:00:25]}  Rdxd5 {[%clk 0:00:26]} 35. gxh5 {[%clk 0:00:26]}  gxh5 {[%clk 0:00:26]} 36. Rf4 {[%clk 0:00:22]}  e3 {[%clk 0:00:26]} 37. Bc3 {[%clk 0:00:22]}  Re6 {[%clk 0:00:26]} 38. Bxg7 {[%clk 0:00:22]}  Kxg7 {[%clk 0:00:26]} 39. Kf3 {[%clk 0:00:22]}  Rde5 {[%clk 0:00:27]} 40. Kg2 {[%clk 0:00:17]}  Re7 {[%clk 0:00:26]} 41. Kf3 {[%clk 0:00:18]}  Kg6 {[%clk 0:00:27]} 42. b4 {[%clk 0:00:18]}  R7e6 {[%clk 0:00:25]} 43. a4 {[%clk 0:00:18]}  b6 {[%clk 0:00:24]} 44. Rd4 {[%clk 0:00:17]}  Rf6+ {[%clk 0:00:24]} 45. Rf4 {[%clk 0:00:17]}  Rfe6 {[%clk 0:00:24]} 46. Rd4 {[%clk 0:00:18]}  Rf6+ {[%clk 0:00:24]} 47. Rf4 {[%clk 0:00:18]}  Rfe6 {[%clk 0:00:25]} 1/2-1/2


[Site "https://www.chess.com"]

[Event "Titled Tuesday Blitz June 07 Early 2022"]
[White "Makarian, Rudik"]
[Black "Al-Tarboush, Ward"]
[WhiteFideId "44105681"]
[BlackFideId "7601450"]
[WhiteElo "2398"]
[BlackElo "2249"]
[Result "1/2-1/2"]
[Round "07"]
[TimeControl "180+1"]
[Date "2022.06.07"]
[WhiteClock "0:00:07"]
[BlackClock "0:00:11"]

1. d3 {[%clk 0:03:00]}  d5 {[%clk 0:02:56]} 2. f4 {[%clk 0:02:59]}  Nc6 {[%clk 0:02:55]} 3. Nf3 {[%clk 0:02:59]}  Nf6 {[%clk 0:02:55]} 4. g3 {[%clk 0:02:59]}  Bf5 {[%clk 0:02:54]} 5. Bg2 {[%clk 0:03:00]}  e6 {[%clk 0:02:54]} 6. O-O {[%clk 0:03:00]}  Bd6 {[%clk 0:02:54]} 7. c3 {[%clk 0:02:56]}  h5 {[%clk 0:02:50]} 8. Nbd2 {[%clk 0:02:52]}  Bh7 {[%clk 0:02:48]} 9. d4 {[%clk 0:02:49]}  Qe7 {[%clk 0:02:47]} 10. Ne5 {[%clk 0:02:49]}  Bxe5 {[%clk 0:02:45]} 11. fxe5 {[%clk 0:02:48]}  Ne4 {[%clk 0:02:45]} 12. Nxe4 {[%clk 0:02:45]}  dxe4 {[%clk 0:02:40]} 13. Qc2 {[%clk 0:02:34]}  h4 {[%clk 0:02:38]} 14. Bxe4 {[%clk 0:02:04]}  Bxe4 {[%clk 0:02:36]} 15. Qxe4 {[%clk 0:02:05]}  hxg3 {[%clk 0:02:37]} 16. hxg3 {[%clk 0:02:05]}  O-O-O {[%clk 0:02:37]} 17. Kg2 {[%clk 0:02:06]}  f5 {[%clk 0:02:35]} 18. exf6 {[%clk 0:01:52]}  gxf6 {[%clk 0:02:35]} 19. Bf4 {[%clk 0:01:52]}  f5 {[%clk 0:02:35]} 20. Qf3 {[%clk 0:01:49]}  Kb8 {[%clk 0:02:32]} 21. Rh1 {[%clk 0:01:49]}  Rhg8 {[%clk 0:02:32]} 22. Rad1 {[%clk 0:01:35]}  Rde8 {[%clk 0:02:23]} 23. Qe3 {[%clk 0:01:22]}  Qg7 {[%clk 0:01:56]} 24. Be5 {[%clk 0:01:07]}  Nxe5 {[%clk 0:01:50]} 25. Qxe5 {[%clk 0:01:07]}  Qxe5 {[%clk 0:01:49]} 26. dxe5 {[%clk 0:01:08]}  f4 {[%clk 0:01:48]} 27. Rh3 {[%clk 0:00:40]}  Rg5 {[%clk 0:01:44]} 28. Kf3 {[%clk 0:00:31]}  fxg3 {[%clk 0:01:40]} 29. Rxg3 {[%clk 0:00:26]}  Rf8+ {[%clk 0:01:39]} 30. Kg2 {[%clk 0:00:26]}  Rxe5 {[%clk 0:01:40]} 31. Rd2 {[%clk 0:00:24]}  a5 {[%clk 0:01:37]} 32. Rf3 {[%clk 0:00:23]}  Rg8+ {[%clk 0:01:37]} 33. Kf2 {[%clk 0:00:21]}  Rh8 {[%clk 0:01:37]} 34. Rg3 {[%clk 0:00:16]}  a4 {[%clk 0:01:36]} 35. a3 {[%clk 0:00:16]}  Rf5+ {[%clk 0:01:31]} 36. Rf3 {[%clk 0:00:16]}  Rh2+ {[%clk 0:01:29]} 37. Ke3 {[%clk 0:00:16]}  Re5+ {[%clk 0:01:21]} 38. Kd3 {[%clk 0:00:16]}  b6 {[%clk 0:01:09]} 39. Rf4 {[%clk 0:00:15]}  Rd5+ {[%clk 0:01:09]} 40. Rd4 {[%clk 0:00:14]}  c5 {[%clk 0:01:03]} 41. Rxd5 {[%clk 0:00:13]}  exd5 {[%clk 0:01:04]} 42. Kc2 {[%clk 0:00:12]}  Rh5 {[%clk 0:01:00]} 43. Rd3 {[%clk 0:00:12]}  Kb7 {[%clk 0:01:00]} 44. Rg3 {[%clk 0:00:12]}  Kc6 {[%clk 0:01:00]} 45. Rg6+ {[%clk 0:00:11]}  Kb5 {[%clk 0:00:59]} 46. Re6 {[%clk 0:00:11]}  Rh2 {[%clk 0:00:53]} 47. Kd3 {[%clk 0:00:10]}  Rh3+ {[%clk 0:00:50]} 48. Kd2 {[%clk 0:00:10]}  d4 {[%clk 0:00:48]} 49. cxd4 {[%clk 0:00:09]}  cxd4 {[%clk 0:00:47]} 50. Kc2 {[%clk 0:00:09]}  Kc5 {[%clk 0:00:42]} 51. Re8 {[%clk 0:00:09]}  Rb3 {[%clk 0:00:23]} 52. Rc8+ {[%clk 0:00:08]}  Kd5 {[%clk 0:00:23]} 53. Rd8+ {[%clk 0:00:08]}  Ke4 {[%clk 0:00:23]} 54. Re8+ {[%clk 0:00:09]}  Kf4 {[%clk 0:00:22]} 55. Re6 {[%clk 0:00:09]}  b5 {[%clk 0:00:21]} 56. Rd6 {[%clk 0:00:05]}  Ke3 {[%clk 0:00:18]} 57. Re6+ {[%clk 0:00:05]}  Kf2 {[%clk 0:00:18]} 58. Re4 {[%clk 0:00:06]}  Ke1 {[%clk 0:00:16]} 59. Rxd4 {[%clk 0:00:03]}  Kxe2 {[%clk 0:00:17]} 60. Re4+ {[%clk 0:00:03]}  Kf3 {[%clk 0:00:16]} 61. Re5 {[%clk 0:00:03]}  Kf4 {[%clk 0:00:16]} 62. Re8 {[%clk 0:00:03]}  Kf5 {[%clk 0:00:16]} 63. Re1 {[%clk 0:00:04]}  Kf4 {[%clk 0:00:17]} 64. Re8 {[%clk 0:00:03]}  Kf5 {[%clk 0:00:17]} 65. Kc1 {[%clk 0:00:03]}  Kf4 {[%clk 0:00:16]} 66. Re7 {[%clk 0:00:04]}  Re3 {[%clk 0:00:14]} 67. Rb7 {[%clk 0:00:03]}  Re5 {[%clk 0:00:14]} 68. Kd2 {[%clk 0:00:03]}  Rc5 {[%clk 0:00:10]} 69. Kd3 {[%clk 0:00:03]}  Ke5 {[%clk 0:00:11]} 70. Re7+ {[%clk 0:00:01]}  Kd6 {[%clk 0:00:11]} 71. Rh7 {[%clk 0:00:02]}  Rg5 {[%clk 0:00:10]} 72. Rh6+ {[%clk 0:00:03]}  Kc5 {[%clk 0:00:09]} 73. Kc3 {[%clk 0:00:03]}  Rg3+ {[%clk 0:00:10]} 74. Kc2 {[%clk 0:00:04]}  Rg2+ {[%clk 0:00:10]} 75. Kb1 {[%clk 0:00:04]}  Kc4 {[%clk 0:00:07]} 76. Rh4+ {[%clk 0:00:04]}  Kd3 {[%clk 0:00:07]} 77. Ka2 {[%clk 0:00:04]}  Kc2 {[%clk 0:00:06]} 78. Rb4 {[%clk 0:00:05]}  Rg5 {[%clk 0:00:06]} 79. Ka1 {[%clk 0:00:05]}  Rg1+ {[%clk 0:00:06]} 80. Ka2 {[%clk 0:00:06]}  Rg5 {[%clk 0:00:07]} 81. Rd4 {[%clk 0:00:06]}  Rc5 {[%clk 0:00:07]} 82. Rb4 {[%clk 0:00:06]}  Kc1 {[%clk 0:00:07]} 83. Rd4 {[%clk 0:00:05]}  Re5 {[%clk 0:00:07]} 84. Rb4 {[%clk 0:00:06]}  Rf5 {[%clk 0:00:05]} 85. Rd4 {[%clk 0:00:05]}  Re5 {[%clk 0:00:06]} 86. Rd8 {[%clk 0:00:03]}  Re2 {[%clk 0:00:06]} 87. Rc8+ {[%clk 0:00:02]}  Rc2 {[%clk 0:00:07]} 88. Rxc2+ {[%clk 0:00:01]}  Kxc2 {[%clk 0:00:07]} 89. Ka1 {[%clk 0:00:02]}  Kc1 {[%clk 0:00:07]} 90. Ka2 {[%clk 0:00:03]}  Kc2 {[%clk 0:00:07]} 91. Ka1 {[%clk 0:00:03]}  Kb3 {[%clk 0:00:08]} 92. Kb1 {[%clk 0:00:04]}  b4 {[%clk 0:00:08]} 93. axb4 {[%clk 0:00:05]}  Kxb4 {[%clk 0:00:09]} 94. Ka2 {[%clk 0:00:05]}  Kb5 {[%clk 0:00:09]} 95. Ka3 {[%clk 0:00:06]}  Ka5 {[%clk 0:00:10]} 96. b3 {[%clk 0:00:06]}  axb3 {[%clk 0:00:11]} 97. Kxb3 {[%clk 0:00:07]} 1/2-1/2


[Site "https://www.chess.com"]

[Event "Titled Tuesday Blitz June 07 Early 2022"]
[White "Martinez Alcantara, Jose Eduardo"]
[Black "Grischuk, Alexander"]
[WhiteFideId "3805662"]
[BlackFideId "4126025"]
[WhiteElo "2703"]
[BlackElo "2762"]
[Result "0-1"]
[Round "07"]
[TimeControl "180+1"]
[Date "2022.06.07"]
[WhiteClock "0:00:54"]
[BlackClock "0:00:03"]

1. e4 {[%clk 0:03:00]}  e6 {[%clk 0:03:00]} 2. d4 {[%clk 0:03:01]}  d5 {[%clk 0:03:00]} 3. Nc3 {[%clk 0:03:01]}  Nf6 {[%clk 0:03:01]} 4. Bg5 {[%clk 0:03:00]}  dxe4 {[%clk 0:03:01]} 5. Nxe4 {[%clk 0:03:00]}  Be7 {[%clk 0:03:02]} 6. Nxf6+ {[%clk 0:03:00]}  Bxf6 {[%clk 0:03:01]} 7. Bxf6 {[%clk 0:03:01]}  Qxf6 {[%clk 0:03:02]} 8. Nf3 {[%clk 0:03:02]}  c5 {[%clk 0:02:59]} 9. Bb5+ {[%clk 0:03:01]}  Nd7 {[%clk 0:02:54]} 10. c3 {[%clk 0:02:49]}  cxd4 {[%clk 0:02:50]} 11. Qxd4 {[%clk 0:02:47]}  Qxd4 {[%clk 0:02:49]} 12. Nxd4 {[%clk 0:02:47]}  Ke7 {[%clk 0:02:48]} 13. O-O-O {[%clk 0:02:47]}  Nf6 {[%clk 0:02:26]} 14. Rhe1 {[%clk 0:02:45]}  g6 {[%clk 0:02:26]} 15. f4 {[%clk 0:02:45]}  Bd7 {[%clk 0:02:26]} 16. Bxd7 {[%clk 0:02:08]}  Nxd7 {[%clk 0:02:27]} 17. f5 {[%clk 0:02:09]}  e5 {[%clk 0:02:14]} 18. g4 {[%clk 0:01:59]}  f6 {[%clk 0:01:41]} 19. g5 {[%clk 0:01:39]}  fxg5 {[%clk 0:01:38]} 20. fxg6 {[%clk 0:01:36]}  hxg6 {[%clk 0:01:36]} 21. Nf3 {[%clk 0:01:37]}  g4 {[%clk 0:01:24]} 22. Nxe5 {[%clk 0:01:37]}  Nxe5 {[%clk 0:01:24]} 23. Rxe5+ {[%clk 0:01:38]}  Kf6 {[%clk 0:01:25]} 24. Re2 {[%clk 0:01:38]}  Rae8 {[%clk 0:01:22]} 25. Rg2 {[%clk 0:01:33]}  Rh4 {[%clk 0:01:05]} 26. Kc2 {[%clk 0:01:23]}  a6 {[%clk 0:00:59]} 27. a4 {[%clk 0:01:15]}  Re3 {[%clk 0:00:56]} 28. Kb3 {[%clk 0:01:10]}  Reh3 {[%clk 0:00:52]} 29. Rdd2 {[%clk 0:01:09]}  Kf5 {[%clk 0:00:49]} 30. Kb4 {[%clk 0:01:08]}  g3+ {[%clk 0:00:46]} 31. Kc5 {[%clk 0:01:06]}  Rxh2 {[%clk 0:00:31]} 32. Rd5+ {[%clk 0:01:06]}  Kf4 {[%clk 0:00:27]} 33. Rg1 {[%clk 0:01:07]}  g2 {[%clk 0:00:22]} 34. Rd3 {[%clk 0:01:02]}  Rg4 {[%clk 0:00:20]} 35. Kb6 {[%clk 0:01:03]}  Rh1 {[%clk 0:00:09]} 36. Rd4+ {[%clk 0:01:03]}  Kf3 {[%clk 0:00:09]} 37. Rxg4 {[%clk 0:01:03]}  Rxg1 {[%clk 0:00:10]} 38. Rxg6 {[%clk 0:01:04]}  Rb1 {[%clk 0:00:09]} 39. Kxb7 {[%clk 0:00:58]}  g1=Q {[%clk 0:00:03]} 40. Rxg1 {[%clk 0:00:59]}  Rxg1 {[%clk 0:00:03]} 41. b4 {[%clk 0:01:00]}  Ke4 {[%clk 0:00:03]} 42. b5 {[%clk 0:00:58]}  axb5 {[%clk 0:00:03]} 43. axb5 {[%clk 0:00:59]}  Kd5 {[%clk 0:00:03]} 44. Kb6 {[%clk 0:00:48]}  Kd6 {[%clk 0:00:03]} 45. c4 {[%clk 0:00:49]}  Rc1 {[%clk 0:00:03]} 46. Ka7 {[%clk 0:00:49]}  Rxc4 {[%clk 0:00:04]} 47. b6 {[%clk 0:00:50]}  Kc6 {[%clk 0:00:03]} 48. b7 {[%clk 0:00:51]}  Ra4+ {[%clk 0:00:03]} 49. Kb8 {[%clk 0:00:52]}  Kb6 {[%clk 0:00:03]} 50. Kc8 {[%clk 0:00:51]}  Rc4+ {[%clk 0:00:03]} 51. Kb8 {[%clk 0:00:52]}  Rh4 {[%clk 0:00:03]} 52. Ka8 {[%clk 0:00:53]}  Ra4+ {[%clk 0:00:02]} 53. Kb8 {[%clk 0:00:53]}  Ra7 {[%clk 0:00:03]} 54. Kc8 {[%clk 0:00:54]}  Rxb7 {[%clk 0:00:03]} 0-1


[Site "https://www.chess.com"]